Cogmind - Beta 16 @@@ ROGUE MODE // 2025.11.20 @ 22:47:54 Player: Dadrick Result: Destroyed by Y-72 Warden with Railgun Performance ------------- Evolutions (7) 3500 Regions Visited (25) 5000 Robots Destroyed (356) 1780 Value Destroyed (11978) 11978 Prototype IDs (53) 1060 Alien Tech Used (1) 200 Bonus (5115) 5115 TOTAL SCORE: 28633 Bonus ------- High Alert Combat Kills 478 Follower Combat Kills 1233 Network Hubs Disabled 200 Met Data Miner 300 Met Imprinter 300 Met Warlord at Base 500 MAIN.C Attacked Warlord 500 Warlord Defense Kills 1004 Built Enhanced Grunts 300 A7 Reached Mainframe 300 Cogmind --------- Core Integrity 0/1300 Matter 189/300 Energy 99/100 System Corruption 28% Temperature Cool (0) Movement Core (50) Location -3/Research Parts ------- > --- POWER (2) -------- (None) > --- PROPULSION (6) --- (None) > --- UTILITY (10) ----- Experimental Core Analyzer > --- WEAPON (3) ------- (None) > --- INVENTORY (5) ---- Advanced Sensor Array Advanced Force Field Cooled Plasma Cannon Advanced Remote Datajack Peak State ------------ > --- POWER ------------ Neutrino Core Micro Antimatter Reactor > --- PROPULSION ------- Combat Airjet Improved Antigrav System Improved Antigrav System Improved Gyrokinetic Inverter Improved Linear Gravjet Cooled Antigrav System > --- UTILITY ---------- Large Storage Unit Enhanced Optical Array Advanced Sensor Array Advanced Signal Interpreter Advanced Melee Analysis Suite Advanced Melee Analysis Suite Experimental Core Analyzer Centrium Medium Armor Plating Centrium Medium Armor Plating Light Regenerative Plating > --- WEAPON ----------- Cooled Plasma Cannon Power Sword Phasing Sabre > --- INVENTORY -------- Light Particle Reactor Gravmag System Improved Linear Gravjet Advanced Sensor Array Improved Melee Analysis Suite Microactuators Improved Transmission Jammer Reflective Plating Graphene Brace Advanced Force Field Hacking Drone Bay Rocket Array Advanced Remote Datajack Power Maul Vortex Lance [Rating: 142] Favorites ----------- Power Improved Ion Engine Engine Improved Ion Engine Power Core Enhanced Nuclear Core Reactor Light Antimatter Reactor Propulsion Combat Airjet Leg Aluminum Leg Hover Unit Combat Airjet Flight Unit Xenon Bombardment Thruster Utility Large Storage Unit Device Advanced Sensor Array Storage Large Storage Unit Processor Advanced Melee Analysis Suite Hackware Hacking Suite Protection Reactive Plating Weapon Power Maul Energy Gun Medium Laser Energy Cannon Cooled Plasma Cannon Ballistic Gun Heavy Assault Rifle Ballistic Cannon Advanced Assault Cannon Launcher Tesla Bomb Launcher Special Weapon RU-N14's Throwing Claymores v3 Impact Weapon Power Maul Slashing Weapon Power Sword Piercing Weapon Vortex Lance Build | -11 -10 -9 -8 -8 -7 -7 -7 -7 -6 -6 -6 -6 -6 -5 -5 -5 -5 -5 -4 -4 -4 -4 -4 -4 -3 ------- Run | Yrd Mat Mat Mat Sto Fac Low Low Zio Pro Fac Low Low Dat Pro Fac Upp Upp War Pro Fac Ext Cet Arc Hub Res Slots Evolved 14 | . . 2 2 . 2 . . . . 2 . . . . 2 . . . . 2 . . . . 2 Power 1 | . . . . . . . . . . . . . . . . . . . . . . . . . 1 Propulsion 4 | . . 1 . . 1 . . . . . . . . . 1 . . . . 1 . . . . . Utility 8 | . . . 2 . 1 . . . . 2 . . . . 1 . . . . 1 . . . . 1 Weapon 1 | . . 1 . . . . . . . . . . . . . . . . . . . . . . . Parts Attached 218 | 8 10 28 26 16 20 1 . 2 8 17 . 1 . . 6 1 2 11 1 10 7 2 3 . 38 Power 27 | 1 1 3 4 . 1 . . . 1 3 . . . . 1 . 1 . . 1 2 . . . 8 Engine 11 | 1 1 3 4 . 1 . . . . 1 . . . . . . . . . . . . . . . Core 7 | . . . . . . . . . 1 2 . . . . 1 . 1 . . . 1 . . . 1 Reactor 9 | . . . . . . . . . . . . . . . . . . . . 1 1 . . . 7 Propulsion 66 | 2 3 12 8 6 4 . . 1 3 5 . . . . 1 . . 1 . 3 . . 2 . 15 Treads . | . . . . . . . . . . . . . . . . . . . . . . . . . . Leg 40 | 2 3 12 8 6 4 . . 1 3 1 . . . . . . . . . . . . . . . Wheel . | . . . . . . . . . . . . . . . . . . . . . . . . . . Hover 22 | . . . . . . . . . . 4 . . . . 1 . . 1 . 3 . . 2 . 11 Flight 4 | . . . . . . . . . . . . . . . . . . . . . . . . . 4 Utility 70 | 2 1 5 8 3 10 . . 1 2 7 . . . . 3 . 1 3 . 6 4 2 1 . 11 Device 22 | 1 . . 1 . 4 . . 1 . 2 . . . . . . . 2 . 5 . . 1 . 5 Storage 3 | 1 1 1 . . . . . . . . . . . . . . . . . . . . . . . Processor 13 | . . . 1 . 3 . . . 1 3 . . . . 2 . . 1 . . 1 . . . 1 Hackware 2 | . . . 1 . . . . . . . . . . . . . . . . . . . . . 1 Protection 30 | . . 4 5 3 3 . . . 1 2 . . . . 1 . 1 . . 1 3 2 . . 4 Artifact . | . . . . . . . . . . . . . . . . . . . . . . . . . . Weapon 55 | 3 5 8 6 7 5 1 . . 2 2 . 1 . . 1 1 . 7 1 . 1 . . . 4 Energy Gun 2 | 1 1 . . . . . . . . . . . . . . . . . . . . . . . . Energy Cannon 3 | . . . . 1 . . . . . 1 . . . . . . . 1 . . . . . . . Ballistic Gun 25 | 2 3 6 4 4 2 . . . . . . . . . . . . . . . . . . . 4 Ballistic Cannon 2 | . . . 1 . . . . . 1 . . . . . . . . . . . . . . . . Launcher 6 | . . 2 . . 1 . . . 1 1 . . . . 1 . . . . . . . . . . Special Weapon 7 | . 1 . . 1 . . . . . . . . . . . . . 4 1 . . . . . . Impact Weapon 5 | . . . . 1 2 . . . . . . 1 . . . 1 . . . . . . . . . Slashing Weapon 4 | . . . 1 . . 1 . . . . . . . . . . . 1 . . 1 . . . . Piercing Weapon 1 | . . . . . . . . . . . . . . . . . . 1 . . . . . . . Special Melee Weapon . | . . . . . . . . . . . . . . . . . . . . . . . . . . Unidentified Prototypes 20 | . 1 . 1 2 1 . . 1 . 3 . . . . 1 1 . 6 . . . 1 . . 2 Parts Lost 89 | . 4 . 7 5 4 . 1 . 5 10 . 1 . . 1 . 2 . . 1 4 1 . . 43 Power 13 | . 1 . 2 . . . . . 1 1 . . . . . . 1 . . . 1 . . . 6 Propulsion 29 | . . . 1 1 2 . 1 . 2 5 . . . . . . . . . . 1 . . . 16 Utility 29 | . . . 1 4 2 . . . 2 2 . . . . 1 . . . . 1 2 1 . . 13 Weapon 18 | . 3 . 3 . . . . . . 2 . 1 . . . . 1 . . . . . . . 8 Highest Loss Streak 17 | . 1 . 2 2 2 . 1 . 5 5 . 1 . . 1 . 1 . . 1 2 1 . . 17 To Critical Strikes 3 | . . . . . . . . . . 1 . . . . . . . . . . 1 . . . 1 Average Backups 13 | . 7 10 14 14 14 15 14 15 13 13 15 15 15 15 14 15 14 14 14 14 13 14 14 15 13 Power 1 | . . . . 1 . 1 1 1 1 1 2 1 1 1 1 1 . . 1 1 1 . 1 1 . Propulsion 1 | . 2 1 2 2 . 1 . 1 1 . 1 1 1 1 . . . . 2 1 1 1 2 3 1 Utility 5 | . . 3 4 3 5 7 7 7 5 6 7 7 7 7 6 6 7 5 6 7 7 8 8 8 7 Weapon 4 | . 3 3 5 6 6 5 5 4 4 3 4 3 5 5 6 6 6 6 5 4 4 4 3 3 2 Tool/Special . | . . . . . . . . . . . . . . . . . . . . . . . . . . Unused Backups 35 | . . 5 4 3 2 . . 1 . 4 . 1 . . 2 . . 4 . . 2 1 1 . 5 Power 7 | . . 1 . . . . . . . 3 . . . . . . . 1 . . . 1 1 . . Propulsion 6 | . . . 1 3 . . . . . . . . . . . . . . . . . . . . 2 Utility 10 | . . 2 1 . . . . 1 . 1 . 1 . . 1 . . 1 . . 1 . . . 1 Weapon 10 | . . 2 2 . 2 . . . . . . . . . 1 . . 2 . . 1 . . . . Tool/Special 2 | . . . . . . . . . . . . . . . . . . . . . . . . . 2 Average Slot Usage (%) 95 | . 99 99 97 97 97 100 97 100 99 86 93 92 87 93 92 94 93 92 93 93 98 93 99 100 86 Engine 4 | . 13 11 8 9 7 7 7 7 3 4 . . . . . . . . . . . . . . . Core 1 | . . . . . . . . . 3 1 6 6 6 6 4 5 4 5 5 4 2 . . . 1 Leg 15 | . 28 32 26 26 28 30 27 30 29 8 . . . . . . . . . . . . . . . Hover 10 | . . . . . . . . . . 9 20 20 20 20 22 23 23 23 23 26 30 25 30 31 22 Device 6 | . 14 1 4 2 9 7 7 7 4 5 6 6 6 6 5 5 3 4 5 9 5 3 9 10 9 Storage 7 | . 14 11 9 9 7 7 7 7 7 6 6 6 6 6 5 5 5 5 5 5 5 5 5 5 3 Processor 18 | . . . 6 9 11 23 23 23 22 27 33 33 33 33 28 29 29 29 29 26 26 26 26 26 20 Protection 5 | . . 9 7 11 8 . . . 2 4 . . . . 4 5 7 5 5 4 9 11 5 5 8 Energy Cannon 1 | . . . . . . 3 . . 2 4 6 6 . 6 4 5 4 . 4 3 3 . . . 1 Ballistic Gun 8 | . 25 32 25 15 7 . . . . . . . . . . . . . . . . . . . . Impact Weapon 7 | . . . . 8 12 15 15 15 8 9 13 12 13 13 10 11 11 7 5 5 5 5 5 5 1 Slashing Weapon 3 | . . . . 2 1 3 7 7 6 2 . . . . . . . 3 5 5 5 9 10 10 6 Peak Build Rating 142 | 7 10 16 25 37 46 48 47 53 52 74 72 72 70 70 86 85 85 103 96 117 120 124 122 116 142 Average Rating 60 | 6 7 13 21 31 42 46 45 48 50 63 72 68 64 70 80 84 83 89 92 105 114 121 116 116 116 On Entrance 65 | . 7 8 16 25 35 46 45 47 50 52 72 72 70 70 70 85 85 76 93 87 117 111 122 116 116 Avg Prop Armor Cover (%) 3 | . . . . . . . . . . . . . . . . . . . . . . 3 4 . . Naked Turns . | . . . . . . . . . . . . . . . . . . . . . . . . . . Heaviest Build 77 | 13 20 39 42 57 59 45 39 39 53 63 41 41 40 40 48 47 57 53 53 60 66 65 54 48 77 Greatest Support 74 | 20 20 30 30 41 56 54 59 66 71 71 46 46 46 46 58 58 58 59 58 74 74 62 68 68 74 Greatest Overweight (x) 14 | . . 1 3 1 2 . . . . 14 . . . . . . . . . . . 1 1 . 2 Average Overweight (x) . | . . . 1 . . . . . . . . . . . . . . . . . . . . . . Largest Inventory Capacity 15 | 8 10 15 15 15 15 15 15 15 15 15 15 15 15 15 15 15 15 15 15 15 15 15 15 15 15 Average Capacity 14 | 7 9 11 15 15 15 15 15 15 15 15 15 15 15 15 15 15 15 15 15 15 15 15 15 15 13 Most Carried 15 | 2 10 15 15 15 15 15 15 15 15 15 15 15 15 15 15 15 15 15 15 15 15 15 15 15 15 Average Carried 13 | . 7 10 14 14 14 15 14 14 13 13 14 14 15 15 14 15 14 14 14 14 14 14 14 15 13 Final Capacity 15 | 8 10 15 15 15 15 15 15 15 15 15 15 15 15 15 15 15 15 15 15 15 15 15 15 15 5 Final Carried 15 | 2 10 15 15 15 15 15 15 15 13 15 15 15 15 15 15 15 15 15 15 15 15 15 15 15 4 Class Distribution -------------------- 26% | Scout 23% | Gladiator 17% | Mutant 12% | Scavenger-Tank 3% | Scavenger-Mutant 3% | Commander-Ninja Dominant Class ---------------- Mutant | -10/Materials Scavenger-Tank | -9/Materials Scavenger-Tank | -8/Materials Mutant | -8/Storage Mutant | -7/Factory Gladiator | -7/Lower Caves Gladiator | -7/Lower Caves Gladiator | -7/Zion Gladiator | -6/Proximity Caves Gladiator | -6/Factory Scout | -6/Lower Caves Scout | -6/Lower Caves Scout | -6/Data Miner Scout | -5/Proximity Caves Scout | -5/Factory Scout | -5/Upper Caves Scout | -5/Upper Caves Scout | -5/Warlord Scout | -4/Proximity Caves Scout | -4/Factory Scout | -4/Extension Commander-Gladiator | -4/Cetus Commander-Ninja | -4/Archives Commander-Ninja | -4/Hub_04(d) Scout | -3/Research Resources | -11 -10 -9 -8 -8 -7 -7 -7 -7 -6 -6 -6 -6 -6 -5 -5 -5 -5 -5 -4 -4 -4 -4 -4 -4 -3 ----------- Run | Yrd Mat Mat Mat Sto Fac Low Low Zio Pro Fac Low Low Dat Pro Fac Upp Upp War Pro Fac Ext Cet Arc Hub Res Matter Collected 6858 | 325 565 1214 1402 334 280 70 15 45 234 373 46 36 . 10 85 40 130 140 90 135 212 158 56 . 863 Remotely . | . . . . . . . . . . . . . . . . . . . . . . . . . . Salvage Created 15632 | 167 660 1802 1859 1214 710 137 79 . 409 1281 74 228 . 71 734 . 172 106 185 456 1763 151 270 188 2916 Parts 662 | 12 37 133 116 30 10 2 4 . 7 43 . 5 . 3 8 . 13 4 6 10 53 7 23 7 129 Haulers Intercepted 27 | . 2 5 4 3 4 . . . . 2 . . . . 4 . . . . 1 . . . . 2 Recyclers Shooed 4 | 1 . 1 . . . . . . . . . . . . 1 . . . . . . . . . 1 Parts Field Recycled . | . . . . . . . . . . . . . . . . . . . . . . . . . . Retrieved Matter . | . . . . . . . . . . . . . . . . . . . . . . . . . . Parts Self-Destructed 56 | . . . . . . 5 4 2 3 . . 29 . . . . 6 . 7 . . . . . . Prevented 13 | . . . . . . . 3 . 2 . . 2 . 3 . . . . 3 . . . . . . Parts Restored . | . . . . . . . . . . . . . . . . . . . . . . . . . . Kills | -11 -10 -9 -8 -8 -7 -7 -7 -7 -6 -6 -6 -6 -6 -5 -5 -5 -5 -5 -4 -4 -4 -4 -4 -4 -3 ------- Run | Yrd Mat Mat Mat Sto Fac Low Low Zio Pro Fac Low Low Dat Pro Fac Upp Upp War Pro Fac Ext Cet Arc Hub Res Combat Hostiles Destroyed 228 | . 18 34 33 18 10 1 1 . 12 14 . 3 . 2 3 . 6 11 8 3 16 2 . . 33 Melee 68 | . . . . 11 7 1 1 . 1 6 . 1 . 1 2 . 1 . 1 2 8 2 . . 23 Guns 82 | . 18 30 31 . . . . . . . . . . . . . . . . . . . . . 3 Cannons 3 | . . . . . . . . . 1 . . . . . . . 1 . . . 1 . . . . AOE 44 | . . 4 2 . . . . . 8 5 . . . . . . 4 11 6 . 1 . . . 3 Classes Destroyed 19 | 3 4 4 1 1 1 1 1 . 1 . . . . 1 1 . . . . . . . . . . Worker 18 | 1 . 5 4 3 2 . . . . 1 . . . . . . . . . . . . . 2 . Builder 19 | . . 1 2 4 2 . . . . 5 . . . . . . . . . . . . . . 5 Tunneler 4 | 4 . . . . . . . . . . . . . . . . . . . . . . . . . Hauler 27 | . 2 5 4 3 4 . . . . 2 . . . . 4 . . . . 1 . . . . 2 Recycler 25 | 1 . 1 1 2 . . . . . 5 . . . . 2 . . . . 1 5 . . 1 6 Minesweeper 3 | . . . . . . . 1 . 1 . . . . . . . 1 . . . . . . . . Mechanic 5 | . . . . 1 1 . . . . . . . . . . . . . . 1 . . . . 2 Operator 14 | . . 2 1 . 2 . . . . . . . . . . . . . . . 2 . 7 . . Drone 2 | . . . . . . . . . . . . . . 1 . . . . 1 . . . . . . Watcher 13 | . 1 4 3 1 1 . . . . . . . . . . . . . . 1 2 . . . . Swarmer 65 | . 9 7 9 3 . . . . 5 6 . . . . . . 4 5 2 . 4 . . . 11 Cutter 2 | . . . . . . . . . . . . . . . 2 . . . . . . . . . . Grunt 73 | . 9 16 16 5 5 . . . 3 2 . 3 . . . . 1 3 2 . 3 1 . . 4 Brawler 6 | . . . 1 . 1 . . . 2 . . . . . . . . 2 . . . . . . . Duelist 5 | . . 1 . . . . . . . . . . . . . . 1 1 2 . . . . . . Sentry 44 | . . 10 7 10 . . 1 . 1 . . . . . 1 . . . 1 1 7 . . . 5 Hunter 9 | . . . . . . 1 . . . 3 . . . 1 . . . . . . 1 . . . 3 Programmer 19 | . . . . . 4 . . . . 3 . . . . . . . . . 2 . . . . 10 Behemoth 1 | . . . . . . . . . 1 . . . . . . . . . . . . . . . . Cetus Guard 1 | . . . . . . . . . . . . . . . . . . . . . . 1 . . . Thug 1 | . . . . . . . . . . . . . . . . . . . . . 1 . . . . Best Kill Streak 10 | 2 5 9 8 5 3 1 1 . 5 10 . 3 . 1 3 . 4 6 5 4 4 1 5 3 8 Combat Bots Only 7 | . 5 7 6 4 3 1 1 . 5 5 . 3 . 1 2 . 4 6 5 1 4 1 . . 4 Max Kills in Single Turn 4 | 2 2 4 2 1 1 1 1 . 3 4 . 1 . 1 1 . 3 4 2 1 1 1 1 1 2 Gunslinging 1 | . . 1 1 . . . . . . . . . . . . . . . . . . . . . . Exploded 4 | . . 3 1 . . . . . 3 2 . . . . . . 3 4 2 . 1 . . . 2 Melee 2 | . . . . 1 1 1 1 . 1 1 . 1 . 1 1 . 1 . 1 1 1 1 . . 2 Uniques/NPCs Destroyed . | . . . . . . . . . . . . . . . . . . . . . . . . . . Combat | -11 -10 -9 -8 -8 -7 -7 -7 -7 -6 -6 -6 -6 -6 -5 -5 -5 -5 -5 -4 -4 -4 -4 -4 -4 -3 -------- Run | Yrd Mat Mat Mat Sto Fac Low Low Zio Pro Fac Low Low Dat Pro Fac Upp Upp War Pro Fac Ext Cet Arc Hub Res Hostile Shots Fired 1602 | . 106 133 148 129 133 . 36 . 115 125 . 21 . 3 19 . 32 11 18 34 57 53 10 3 416 Missed 501 | . 24 33 30 37 44 . 9 . 39 39 . 10 . 2 6 . 13 7 8 15 23 21 1 2 138 Hits 1101 | . 82 100 118 92 89 . 27 . 76 86 . 11 . 1 13 . 19 4 10 19 34 32 9 1 278 Melee 15 | . . 3 . . 4 . . . 4 . . . . . 4 . . . . . . . . . . Projectile 1086 | . 82 97 118 92 85 . 27 . 72 86 . 11 . 1 9 . 19 4 10 19 34 32 9 1 278 AOE 1 | . . . . . 1 . . . . . . . . . . . . . . . . . . . . Critical Strikes 54 | . . 4 6 6 4 . . . 3 3 . . . . 1 . 1 . . 2 5 7 . 1 11 Actively Blocked 7 | . . . 2 . . . . . . . . . . . . . . . . . . . . . 5 Part Disruptions 4 | . . . . . . . . . . . . . . . . . . . . . . . . . 4 Damage Taken 18477 | . 806 1320 1568 1219 1272 . 192 . 1153 1448 . 163 . 18 302 . 423 143 221 397 821 764 232 94 5921 Core 3094 | . 202 300 126 133 118 . 26 . 184 279 . 54 . . 49 . 24 23 24 . 28 34 106 71 1313 Absorbed by Shields 240 | . . . . . . . . . . . . . . . . . . . . . 47 193 . . . Redirected to Shielding 520 | . . . 97 . . . . . . . . . . . . . . . . . . . . . 423 Ignored by Resistances 356 | . . . . 88 32 . . . 97 119 . . . . . . . . . . 20 . . . . Regen/Repaired (Parts) 1104 | . . 170 174 . 74 . . . . . . . . . 42 . . 59 . 124 62 169 . 6 224 Core Remaining (%) 59 | 100 19 25 . 52 . . . . 53 . . . . 60 . . . . 88 . . . . 79 . Volleys Fired 454 | 15 91 98 103 4 1 2 . . 8 13 . 4 . . 10 2 38 10 6 2 11 3 . . 33 Largest 3 | 2 2 3 3 2 1 1 . . 1 1 . 1 . . 1 1 1 1 1 1 1 1 . . 2 Hottest 105 | 70 100 69 71 50 25 100 . . 100 100 . 35 . . 105 35 105 . 105 35 105 46 . . 105 Shots Fired 945 | 30 162 288 290 8 5 2 . . 8 13 . 4 . . 10 2 38 10 6 3 13 3 . . 50 Gun 798 | 30 145 285 286 8 5 . . . . . . . . . . . . . . . . . . . 39 Cannon 91 | . . . 2 . . 2 . . 4 10 . 4 . . 10 2 35 . 1 3 11 . . . 7 Launcher 26 | . . 3 2 . . . . . 4 3 . . . . . . 3 . 2 . 2 3 . . 4 Special 30 | . 17 . . . . . . . . . . . . . . . . 10 3 . . . . . . Kinetic 793 | 15 145 285 288 8 5 . . . 2 6 . . . . . . . . . . . . . . 39 Thermal 113 | 15 17 . . . . 2 . . 2 4 . 4 . . 10 2 35 . 1 3 11 . . . 7 Explosive 34 | . . 3 2 . . . . . 4 3 . . . . . . 3 10 5 . . . . . 4 Electromagnetic 5 | . . . . . . . . . . . . . . . . . . . . . 2 3 . . . Robot Hit Streak 23 | 4 10 14 23 2 3 . . . 6 6 . 8 . . . . 5 . . . 2 . . . 6 Robot Miss Streak 10 | 3 4 7 6 2 1 . . . 2 10 . . . . 1 . 1 . . 1 3 . . . 4 Penetration Max . | . . . . . . . . . . . . . . . . . . . . . . . . . . Secondary Targets 14 | . 3 5 6 . . . . . . . . . . . . . . . . . . . . . . Max Gunslinging Chain 1 | . 1 1 1 . . . . . . . . . . . . . . . . . . . . . . Shots Hit Robots 940 | 15 91 178 189 76 66 3 7 . 23 32 2 6 . 2 23 . 12 . 3 25 42 8 8 3 126 Core Hits 450 | 7 40 84 91 11 8 2 1 . 33 27 . 2 . 1 2 . 7 22 18 4 17 6 4 2 61 Critical Kills 14 | . . . . 3 3 . 1 . . . . . . 1 1 . . . . . 2 . . . 3 Critical Parts Destroyed 61 | . . 1 2 14 11 . . . 3 7 . 3 . 1 5 . 1 . 1 2 5 . . . 5 Critical Strikes 97 | 1 . 1 2 18 15 . 1 . 3 7 . 3 . 2 6 . 1 . 2 3 11 2 . . 19 Burn 1 | 1 . . . . . . . . . . . . . . . . . . . . . . . . . Destroy 3 | . . 1 2 . . . . . . . . . . . . . . . . . . . . . . Smash 74 | . . . . 17 15 . 1 . 3 7 . 3 . 2 6 . 1 . 1 2 7 . . . 9 Sever 17 | . . . . 1 . . . . . . . . . . . . . . 1 1 4 2 . . 8 Sunder 2 | . . . . . . . . . . . . . . . . . . . . . . . . . 2 Melee Attacks 739 | . . . 14 95 116 8 7 1 31 61 11 11 . 8 42 19 17 . 25 45 44 10 12 6 156 Impact 488 | . . . . 84 114 5 6 1 23 51 11 11 . 8 42 19 17 . 10 34 20 . 2 1 29 Slashing 237 | . . . 14 11 2 3 1 . 8 10 . . . . . . . . 15 11 24 9 10 5 114 Piercing . | . . . . . . . . . . . . . . . . . . . . . . . . . . Entropic 14 | . . . . . . . . . . . . . . . . . . . . . . 1 . . 13 Sneak Attacks 101 | . . . 1 16 13 1 1 . 1 10 . 1 . 2 4 . . . . 5 13 . 7 3 23 Combat Hostiles 13 | . . . . . . 1 . . . 1 . 1 . 2 . . . . . . 3 . . . 5 Follow-up Attacks 64 | . . . . 8 8 . 2 . 6 4 . . . . 4 . 1 . . 5 6 2 1 . 17 Damage Inflicted 39470 | 214 1015 2931 3253 3598 3457 193 313 . 1570 2721 175 312 . 214 1402 . 686 2554 1355 1508 2741 561 913 257 7527 Guns 7174 | 214 1015 2518 2896 64 32 . . . . . . . . . . . . . . . . . . . 435 Cannons 618 | . . . . . . . . . 41 22 . 66 . . 66 . 293 . . . 130 . . . . Explosions 6898 | . . 413 254 . . . . . 669 703 . . . . . . 196 2501 1177 . 62 178 . . 745 Melee 24684 | . . . 103 3534 3425 193 313 . 860 1996 175 246 . 214 1336 . 197 . 135 1508 2549 383 913 257 6347 Ramming . | . . . . . . . . . . . . . . . . . . . . . . . . . . Kinetic 7061 | 101 1015 2518 2896 64 32 . . . . . . . . . . . . . . . . . . . 435 Thermal 967 | 113 . . . . . . . . 41 258 . 66 . . 66 . 293 . . . 130 . . . . Explosive 6392 | . . 383 254 . . . . . 669 467 . . . . . . 196 2501 1177 . . . . . 745 Electromagnetic 270 | . . 30 . . . . . . . . . . . . . . . . . . 62 178 . . . Impact 15656 | . . . . 3296 3425 . 282 . 669 1809 175 246 . 214 1336 . 197 . 80 1214 1279 . . . 1434 Slashing 8377 | . . . 103 238 . 193 31 . 191 187 . . . . . . . 53 98 294 1270 383 913 257 4166 Piercing . | . . . . . . . . . . . . . . . . . . . . . . . . . . Entropic 747 | . . . . . . . . . . . . . . . . . . . . . . . . . 747 Highest Corruption 28 | . . . . . 4 4 4 4 3 1 1 1 1 1 . . 1 1 . 3 5 6 6 . 28 Average Corruption 3 | . . . . . 3 4 4 4 3 1 1 1 1 1 . . 1 1 . 2 3 5 4 . 6 Corruption Purged 9 | . . . . . 3 . . . . . . . . . . . . . . . . . 6 . . Corruption Blocked . | . . . . . . . . . . . . . . . . . . . . . . . . . . Effects 157 | . . . . . 21 13 12 1 11 2 1 5 . 1 . . 1 . . 3 24 17 5 . 40 Message Errors 35 | . . . . . 3 5 7 . 4 1 . . . 1 . . . . . . 7 1 1 . 5 Matter Fused 44 | . . . . . 6 3 1 1 4 1 1 3 . . . . . . . . 6 7 . . 11 Heat Flow Errors 13 | . . . . . 1 1 2 . . . . 1 . . . . 1 . . 1 1 1 3 . 1 Energy Discharges 23 | . . . . . 3 1 1 . 1 . . . . . . . . . . . 4 6 1 . 6 Parts Rejected 2 | . . . . . 1 . . . . . . . . . . . . . . 1 . . . . . Parts Fused 2 | . . . . . . 1 . . . . . . . . . . . . . . . . . . 1 Data Loss (minor) 18 | . . . . . 2 1 . . 2 . . 1 . . . . . . . . 1 2 . . 9 Data Loss (major) 7 | . . . . . 1 1 1 . . . . . . . . . . . . . 1 . . . 3 Misfires 7 | . . . . . 4 . . . . . . . . . . . . . . 1 2 . . . . Alerts 2 | . . . . . . . . . . . . . . . . . . . . . 2 . . . . Misdirections 3 | . . . . . . . . . . . . . . . . . . . . . . . . . 3 Weapon Failures 1 | . . . . . . . . . . . . . . . . . . . . . . . . . 1 Overload Shots 6 | . . . . . . . . . . . . . . . 1 . 1 . 1 . 1 . . . 2 Effects 1 | . . . . . . . . . . . . . . . . . . . . . 1 . . . . Heat Surge 1 | . . . . . . . . . . . . . . . . . . . . . 1 . . . . Overflow Damage 8075 | . . . 33 1467 1224 22 75 . 298 906 120 175 . 104 451 . 117 19 119 396 625 . 305 49 1570 Projectiles 111 | . . . . . . . . . 18 . . 15 . . . . 44 . . . 17 . . . 17 Explosions 200 | . . . . . . . . . . 43 . . . . . . 2 19 84 . 9 . . . 43 Melee 7764 | . . . 33 1467 1224 22 75 . 280 863 120 160 . 104 451 . 71 . 35 396 599 . 305 49 1510 Knockbacks 54 | . . . . 9 12 . 1 . . 12 . . . 1 2 . 2 . . 4 5 . . . 6 Impact 51 | . . . . 9 12 . 1 . . 12 . . . 1 2 . 2 . . 3 4 . . . 5 Kinetic . | . . . . . . . . . . . . . . . . . . . . . . . . . . Secondary 3 | . . . . . . . . . . . . . . . . . . . . 1 1 . . . 1 Self-Inflicted Damage 386 | . . 14 . . . . . . 30 154 . . . . . . 40 . . . 10 . . . 138 Shots 16 | . . 1 . . . . . . 1 5 . . . . . . 2 . . . 1 . . . 6 Rammed . | . . . . . . . . . . . . . . . . . . . . . . . . . . Targets Rammed . | . . . . . . . . . . . . . . . . . . . . . . . . . . Kicked . | . . . . . . . . . . . . . . . . . . . . . . . . . . Crushed . | . . . . . . . . . . . . . . . . . . . . . . . . . . Highest Temperature 372 | 45 80 310 129 14 193 260 225 . 90 111 . 274 . . 59 . 127 . 54 80 372 86 241 . 323 Average Temperature 57 | 15 17 47 22 5 72 102 97 . 37 56 . 139 . . 38 . 35 . 30 33 131 25 89 . 80 Received Heat Transfer 3760 | . 273 531 729 639 180 . 54 . 261 36 . 75 . . 54 . 108 . 18 18 474 106 27 . 177 Effects 3 | . . . . . . . . . . . . . . . . . . . . . 1 . 1 . 1 Energy Bleed 2 | . . . . . . . . . . . . . . . . . . . . . 1 . 1 . . Damage (minor) 1 | . . . . . . . . . . . . . . . . . . . . . . . . . 1 Siege Activations . | . . . . . . . . . . . . . . . . . . . . . . . . . . Martial Activations . | . . . . . . . . . . . . . . . . . . . . . . . . . . Shielding Activations . | . . . . . . . . . . . . . . . . . . . . . . . . . . Robots Disrupted . | . . . . . . . . . . . . . . . . . . . . . . . . . . Combat Hostiles . | . . . . . . . . . . . . . . . . . . . . . . . . . . Robots Corrupted 67 | . . . . 17 11 . 1 . 2 7 . 2 . 1 6 . . . 1 3 9 . . . 7 Combat Hostiles 29 | . . . . 7 2 . . . 2 3 . 2 . 1 1 . . . 1 1 5 . . . 4 Parts Fried 119 | . . . . 36 18 . 2 . 1 19 . 2 . 2 10 . . . . 4 16 . . . 9 Impact Corruptions 214 | . . . . 54 52 . 2 . 6 27 5 3 . 1 13 . 2 . 1 11 18 . . . 19 Robots Melted . | . . . . . . . . . . . . . . . . . . . . . . . . . . Combat Hostiles . | . . . . . . . . . . . . . . . . . . . . . . . . . . Parts Melted 3 | 3 . . . . . . . . . . . . . . . . . . . . . . . . . Heat Transferred 1442 | 407 . . . . . . . . 50 175 . 100 . . 80 . 430 . . . 200 . . . . Parts Sabotaged . | . . . . . . . . . . . . . . . . . . . . . . . . . . Parts Stolen . | . . . . . . . . . . . . . . . . . . . . . . . . . . Parts Stripped . | . . . . . . . . . . . . . . . . . . . . . . . . . . Power Chain Reactions . | . . . . . . . . . . . . . . . . . . . . . . . . . . Alert | -11 -10 -9 -8 -8 -7 -7 -7 -7 -6 -6 -6 -6 -6 -5 -5 -5 -5 -5 -4 -4 -4 -4 -4 -4 -3 ------- Run | Yrd Mat Mat Mat Sto Fac Low Low Zio Pro Fac Low Low Dat Pro Fac Upp Upp War Pro Fac Ext Cet Arc Hub Res Maximum Alert Level 3 | . . 2 2 1 . . . . . 2 . . . . . . . . . 3 1 1 1 1 2 Low Security (%) 58 | 100 100 33 40 83 100 . . . . 39 . . . . 100 . . . . . 49 28 89 60 12 Level 1 24 | . . 44 40 16 . . . . . . . . . . . . . . . . 50 71 10 39 56 Level 2 13 | . . 21 19 . . . . . . 60 . . . . . . . . . 17 . . . . 30 Level 3 3 | . . . . . . . . . . . . . . . . . . . . 82 . . . . . Level 4 . | . . . . . . . . . . . . . . . . . . . . . . . . . . Level 5 . | . . . . . . . . . . . . . . . . . . . . . . . . . . High Security . | . . . . . . . . . . . . . . . . . . . . . . . . . . Max Security . | . . . . . . . . . . . . . . . . . . . . . . . . . . Peak Influence 1021 | 10 120 500 474 240 190 . . . . 506 . . . . 154 . . . . 1021 384 345 228 287 517 Initial 1021 | . . 32 163 186 81 . . . . 6 . . . . 150 . . . . 1021 326 182 58 . 150 Average 213 | 1 45 270 252 147 72 . . . . 275 . . . . 89 . . . . 834 220 234 86 145 311 Influence Increases 10571 | 30 467 1119 983 862 550 40 25 . 265 843 10 85 . 35 475 60 240 235 302 1073 768 263 270 327 1244 Destroy 0b10 Robot/C 5020 | . 360 680 660 420 200 20 20 . 240 280 . 60 . 20 60 . 120 220 220 60 420 140 80 80 660 Destroy 0b10 Robot/NC 685 | 30 15 90 75 70 60 10 5 . 5 65 10 . . 5 30 . 5 . 5 20 50 5 35 20 75 Destroy Leader 1058 | . 66 198 154 138 70 10 . . 20 74 . 10 . 10 26 . 10 . 20 24 54 10 . 32 132 Allied During Kill 521 | . . . . 36 . . . . . . . . . . . . . . 57 . 171 85 115 57 . Successful Hack 450 | . 14 16 8 54 50 . . . . 95 . . . . 111 . . . . 28 29 . . 11 34 Select Force Hacks 50 | . . . . . . . . . . . . . . . . . . . . . . . . 50 . Disable Machine 540 | . . 30 60 75 90 . . . . 210 . . . . . . . . . . . 15 30 15 15 Destroy Structure 432 | . 12 30 26 9 20 . . . . 119 . . . . 38 . . . . 26 14 8 10 32 88 Advance Influence 1050 | . . . . . . . . . . . . . . . 150 . . . . 900 . . . . . Partial Spotted 120 | . . . . . . . . . . . . . . . . . . . . 15 . . . 30 75 Lose Combat Pursuer 645 | . . 75 . 60 60 . . . . . . 15 . . 60 60 105 15 . . 30 . . . 165 Influence Decreases 10121 | 30 389 810 928 1124 551 219 25 . 254 418 352 179 . 35 352 183 149 147 288 600 1108 444 415 40 1081 Entered New Map 1974 | . . 46 224 256 99 67 . . . 5 162 19 . . . 46 . 91 179 72 340 144 87 . 137 Time Decay 6424 | 30 359 614 634 565 422 152 25 . 234 353 190 150 . 35 342 127 139 56 69 318 498 270 288 40 514 Search Patrol Dispatched 200 | . . . . . . . . . . . . . . . . . . . . 200 . . . . . Lost Part 780 | . 30 . 70 50 30 . . . 20 60 . 10 . . 10 . 10 . . 10 40 10 . . 430 Lost Ally 416 | . . . . 226 . . . . . . . . . . . 10 . . 40 . 80 20 40 . . Purge Threat 327 | . . 150 . 27 . . . . . . . . . . . . . . . . 150 . . . . Squads Dispatched 53 | . 2 2 5 3 9 . . . . 6 . . . . 4 . 1 . . 7 4 1 . 4 5 Investigation 15 | . 1 2 2 . 4 . . . . 1 . . . . . . . . . 2 1 1 . 1 . Extermination 14 | . . . . . 4 . . . . 3 . . . . 2 . . . . 2 . . . . 3 Reinforcement 21 | . 1 . 3 1 1 . . . . 2 . . . . 2 . . . . 3 3 . . 3 2 Assault 3 | . . . . 2 . . . . . . . . . . . . 1 . . . . . . . . Garrison . | . . . . . . . . . . . . . . . . . . . . . . . . . . Intercept . | . . . . . . . . . . . . . . . . . . . . . . . . . . Searches Triggered 2 | . . . . . . . . . . . . . . . . . . . . 2 . . . . . Data Miner Redirects 3 | . . . . . . . . . . . . . . . . . . . . 1 . . . 1 1 Construction Impeded 3 | . . . . . . . . . . 1 . . . . . . . . . 1 1 . . . . Haulers Reinforced 3 | . . . . . 1 . . . . . . . . . 1 . . . . 1 . . . . . Active Scanning Responses . | . . . . . . . . . . . . . . . . . . . . . . . . . . Cargo Convoy Interrupts 2 | . . . . . . . . . . 1 . . . . . . . . . . . . . . 1 Stealth | -11 -10 -9 -8 -8 -7 -7 -7 -7 -6 -6 -6 -6 -6 -5 -5 -5 -5 -5 -4 -4 -4 -4 -4 -4 -3 --------- Run | Yrd Mat Mat Mat Sto Fac Low Low Zio Pro Fac Low Low Dat Pro Fac Upp Upp War Pro Fac Ext Cet Arc Hub Res Distress Signals 18 | . 1 1 2 3 1 . . . . . . . . 1 . . . 1 1 . 1 1 . . 5 Communications Jammed 7 | . . . . . 6 . . . . . . . . . . . . . . . . . . . 1 Distress Signals 6 | . . . . . 6 . . . . . . . . . . . . . . . . . . . . Times Spotted 396 | . 24 40 48 33 24 . 1 . 10 19 . 6 . 2 12 2 14 26 13 8 28 8 4 4 70 Peak Tracking Total 18 | . 3 5 5 5 5 . 1 . 5 5 . 3 . 1 6 4 5 9 5 2 5 5 1 2 18 Tactical Retreats 26 | . . 2 . 3 3 . . . . . . 1 . . 3 1 4 1 . . 1 . . . 7 Traps | -11 -10 -9 -8 -8 -7 -7 -7 -7 -6 -6 -6 -6 -6 -5 -5 -5 -5 -5 -4 -4 -4 -4 -4 -4 -3 ------- Run | Yrd Mat Mat Mat Sto Fac Low Low Zio Pro Fac Low Low Dat Pro Fac Upp Upp War Pro Fac Ext Cet Arc Hub Res Traps Triggered 15 | . . 1 4 . . . . . . . . . . . . . . . . . 6 . . . 4 Indirectly 3 | . . . . . . . . . . . . . . . . . . . . . 3 . . . . Trap Hack Attempts . | . . . . . . . . . . . . . . . . . . . . . . . . . . Triggered . | . . . . . . . . . . . . . . . . . . . . . . . . . . Disarmed . | . . . . . . . . . . . . . . . . . . . . . . . . . . Reprogrammed . | . . . . . . . . . . . . . . . . . . . . . . . . . . Reused 4 | . . . . . . . . . 1 . . . . . . . 3 . . . . . . . . Traps Extracted . | . . . . . . . . . . . . . . . . . . . . . . . . . . Installed 5 | . . . . . . . . . 2 . . . . . . . 3 . . . . . . . . Triggered 4 | . . . . . . . . . 1 . . . . . . . 3 . . . . . . . . Most Traps Carried 2 | . . . . . . . . . 2 . . . . . . . 1 . . . . . . . . Machines | -11 -10 -9 -8 -8 -7 -7 -7 -7 -6 -6 -6 -6 -6 -5 -5 -5 -5 -5 -4 -4 -4 -4 -4 -4 -3 ---------- Run | Yrd Mat Mat Mat Sto Fac Low Low Zio Pro Fac Low Low Dat Pro Fac Upp Upp War Pro Fac Ext Cet Arc Hub Res Machines Disabled 41 | . . 2 4 5 6 . . . . 14 . . . . . 1 . . 1 . 2 2 2 1 1 Max in Single Turn 8 | . . 2 1 1 1 . . . . 8 . . . . . 1 . . 1 . 1 1 . . 1 Garrison Access 2 | . . . 1 . 1 . . . . . . . . . . . . . . . . . . . . Network Hub 1 | . . . . . . . . . . . . . . . . . . . . . . . . 1 . Machines Repaired . | . . . . . . . . . . . . . . . . . . . . . . . . . . Machines Dismantled 2 | . . . . 2 . . . . . . . . . . . . . . . . . . . . . Machines Sabotaged 1 | . . . . . . . . . . . . . . . . . . . . . . . . 1 . Overloaded Fab Kills . | . . . . . . . . . . . . . . . . . . . . . . . . . . Hacking | -11 -10 -9 -8 -8 -7 -7 -7 -7 -6 -6 -6 -6 -6 -5 -5 -5 -5 -5 -4 -4 -4 -4 -4 -4 -3 --------- Run | Yrd Mat Mat Mat Sto Fac Low Low Zio Pro Fac Low Low Dat Pro Fac Upp Upp War Pro Fac Ext Cet Arc Hub Res Machines Accessed 117 | . 9 16 12 14 14 . . . . 12 . 1 4 . 11 . . 2 1 7 5 1 . 3 5 Terminals 78 | . 7 12 8 12 7 . . . . 10 . . . . 7 . . . 1 2 5 1 . 3 3 Fabricators 6 | . . . . . 3 . . . . . . . . . 1 . . . . 2 . . . . . Repair Stations 6 | . . 1 1 1 1 . . . . . . . . . 1 . . . . 1 . . . . . Recycling Units 10 | . 2 1 1 1 2 . . . . . . . . . 1 . . . . 1 . . . . 1 Scanalyzers 7 | . . 2 1 . . . . . . 2 . . . . 1 . . . . . . . . . 1 Garrison Access 3 | . . . 1 . 1 . . . . . . . . . . . . . . 1 . . . . . Total Hacks 325 | . 27 55 39 36 33 . . . . 28 . 1 27 . 28 . . 7 1 15 8 4 . 6 10 Successful 189 | . 11 32 25 21 16 . . . . 16 . 1 27 . 15 . . 7 1 8 3 . . 3 3 Failed 133 | . 16 23 14 15 17 . . . . 9 . . . . 13 . . . . 7 5 4 . 3 7 Catastrophic 27 | . 1 5 1 . 5 . . . . 3 . . . . 4 . . . . 2 1 1 . 1 3 Database Lockouts 3 | . . . . . . . . . . 3 . . . . . . . . . . . . . . . Manual 115 | . 17 19 17 9 16 . . . . 5 . . . . 11 . . 1 2 5 6 1 . 5 1 Terminals 206 | . 22 40 28 34 17 . . . . 23 . . . . 16 . . . 1 3 8 4 . 6 4 Fabricators 14 | . . . . . 5 . . . . . . . . . 3 . . . . 6 . . . . . Repair Stations 19 | . . 5 5 1 2 . . . . . . . . . 2 . . . . 4 . . . . . Recycling Units 22 | . 5 2 2 1 6 . . . . . . . . . 4 . . . . 1 . . . . 1 Scanalyzers 23 | . . 8 2 . . . . . . 5 . . . . 3 . . . . . . . . . 5 Garrison Access 6 | . . . 2 . 3 . . . . . . . . . . . . . . 1 . . . . . Terminal Hacks 86 | . 3 9 7 13 2 . . . . 10 . 1 27 . 3 . . 7 1 1 2 . . . . Record 15 | . . . . . . . . . . 3 . . 11 . . . . . 1 . . . . . . Part Schematic 15 | . . . . 3 2 . . . . 1 . . 9 . . . . . . . . . . . . Robot Schematic 4 | . . . . . . . . . . . . . 4 . . . . . . . . . . . . Robot Analysis 1 | . 1 . . . . . . . . . . . . . . . . . . . . . . . . Prototype ID Bank 14 | . . 2 1 1 . . . . . 1 . . 3 . . . . 6 . . . . . . . Open Door 7 | . . . . 4 . . . . . . . 1 . . . . . 1 . 1 . . . . . Branch Access Points 3 | . . 1 . . . . . . . 1 . . . . 1 . . . . . . . . . . Terminal Index 2 | . 1 . 1 . . . . . . . . . . . . . . . . . . . . . . Alert Level 2 | . . 1 . . . . . . . 1 . . . . . . . . . . . . . . . Unreport Threat 3 | . . 1 . 1 . . . . . . . . . . . . . . . . 1 . . . . Locate Traps 8 | . 1 1 1 2 . . . . . 2 . . . . . . . . . . 1 . . . . Hauler Manifests 4 | . . 1 2 1 . . . . . . . . . . . . . . . . . . . . . Registered Components 1 | . . . 1 . . . . . . . . . . . . . . . . . . . . . . Registered Prototypes 1 | . . . . . . . . . . . . . . . 1 . . . . . . . . . . Zone Layout 6 | . . 2 1 1 . . . . . 1 . . . . 1 . . . . . . . . . . Fabricator Hacks 7 | . . . . . 4 . . . . . . . . . . . . . . 3 . . . . . Network Status 1 | . . . . . 1 . . . . . . . . . . . . . . . . . . . . Load Schematic 3 | . . . . . 2 . . . . . . . . . . . . . . 1 . . . . . Build 3 | . . . . . 1 . . . . . . . . . . . . . . 2 . . . . . Repair Station Hacks 11 | . . 4 4 . . . . . . . . . . . 2 . . . . 1 . . . . . Scan Component 6 | . . 2 2 . . . . . . . . . . . 1 . . . . 1 . . . . . Repair 5 | . . 2 2 . . . . . . . . . . . 1 . . . . . . . . . . Recycling Unit Hacks 9 | . 1 1 2 1 2 . . . . . . . . . 1 . . . . 1 . . . . . Report Inventory 5 | . . . 1 1 1 . . . . . . . . . 1 . . . . 1 . . . . . Retrieve Components 4 | . 1 1 1 . 1 . . . . . . . . . . . . . . . . . . . . Scanalyzer 18 | . . 8 2 . . . . . . 3 . . . . 3 . . . . . . . . . 2 Insert Component 5 | . . 2 . . . . . . . 1 . . . . 2 . . . . . . . . . . Analyze 5 | . . 3 . . . . . . . 1 . . . . 1 . . . . . . . . . . Retrieve Study 8 | . . 3 2 . . . . . . 1 . . . . . . . . . . . . . . 2 Garrison Access Hacks 2 | . . . 1 . 1 . . . . . . . . . . . . . . . . . . . . Seal Access 2 | . . . 1 . 1 . . . . . . . . . . . . . . . . . . . . Unauthorized Hacks 56 | . 7 10 9 7 7 . . . . 3 . . . . 6 . . . . 2 1 . . 3 1 Terminals 52 | . 7 10 9 7 5 . . . . 3 . . . . 5 . . . . 1 1 . . 3 1 Track 1 | . . 1 . . . . . . . . . . . . . . . . . . . . . . . Assimilate 6 | . . . . . 3 . . . . 1 . . . . 1 . . . . . . . . 1 . Botnet 22 | . 2 4 3 2 2 . . . . 2 . . . . 3 . . . . 1 1 . . 1 1 Operators 1 | . 1 . . . . . . . . . . . . . . . . . . . . . . . . Skim 21 | . 4 5 6 5 . . . . . . . . . . 1 . . . . . . . . . . Sabotage 1 | . . . . . . . . . . . . . . . . . . . . . . . . 1 . Fabricators 2 | . . . . . 1 . . . . . . . . . 1 . . . . . . . . . . Liberate 1 | . . . . . . . . . . . . . . . 1 . . . . . . . . . . Recompile 1 | . . . . . 1 . . . . . . . . . . . . . . . . . . . . Repair Stations 2 | . . . . . 1 . . . . . . . . . . . . . . 1 . . . . . Patch 2 | . . . . . 1 . . . . . . . . . . . . . . 1 . . . . . Recycling Units . | . . . . . . . . . . . . . . . . . . . . . . . . . . Scanalyzers . | . . . . . . . . . . . . . . . . . . . . . . . . . . Garrison Access . | . . . . . . . . . . . . . . . . . . . . . . . . . . Data Cores Recovered 4 | . . 2 1 . 1 . . . . . . . . . . . . . . . . . . . . Used 1 | . . . 1 . . . . . . . . . . . . . . . . . . . . . . Hacking Detections 91 | . 9 15 10 9 12 . . . . 10 . . . . 11 . . . . 5 4 1 . 2 3 Full Trace Events 8 | . 1 1 1 . 2 . . . . 1 . . . . . . . . . 1 . 1 . . . Feedback Events . | . . . . . . . . . . . . . . . . . . . . . . . . . . Feedback Blocked . | . . . . . . . . . . . . . . . . . . . . . . . . . . Robot Schematics Acquired 8 | . . . . . . . . 4 . . . . 4 . . . . . . . . . . . . Robots Built . | . . . . . . . . . . . . . . . . . . . . . . . . . . Authchips . | . . . . . . . . . . . . . . . . . . . . . . . . . . Time . | . . . . . . . . . . . . . . . . . . . . . . . . . . Total Robot Build Rating . | . . . . . . . . . . . . . . . . . . . . . . . . . . Part Schematics Acquired 33 | . . 2 . 3 2 . . 14 . 2 . . 9 . 1 . . . . . . . . . . Parts Built 5 | . . . . . 2 . . . . . . . . . . . . . . 3 . . . . . Authchips . | . . . . . . . . . . . . . . . . . . . . . . . . . . Time 364 | . . . . . 84 . . . . . . . . . . . . . . 280 . . . . . Total Part Build Rating 29 | . . . . . 8 . . . . . . . . . . . . . . 21 . . . . . Part Studies Acquired 8 | . . 3 2 . . . . . . 1 . . . . . . . . . . . . . . 2 Parts Repaired 5 | . . 2 2 . . . . . . . . . . . 1 . . . . . . . . . . Time 172 | . . 64 64 . . . . . . . . . . . 44 . . . . . . . . . . Parts Recycled . | . . . . . . . . . . . . . . . . . . . . . . . . . . Recycled Matter . | . . . . . . . . . . . . . . . . . . . . . . . . . . Retrieved Matter . | . . . . . . . . . . . . . . . . . . . . . . . . . . Retrieved Components 15 | . . 3 5 . 7 . . . . . . . . . . . . . . . . . . . . Parts Scanalyzed 4 | . . 2 . . . . . . . 1 . . . . 1 . . . . . . . . . . Part Schematics Acquired 4 | . . 2 . . . . . . . 1 . . . . 1 . . . . . . . . . . Parts Damaged . | . . . . . . . . . . . . . . . . . . . . . . . . . . Bothacking | -11 -10 -9 -8 -8 -7 -7 -7 -7 -6 -6 -6 -6 -6 -5 -5 -5 -5 -5 -4 -4 -4 -4 -4 -4 -3 ------------ Run | Yrd Mat Mat Mat Sto Fac Low Low Zio Pro Fac Low Low Dat Pro Fac Upp Upp War Pro Fac Ext Cet Arc Hub Res Used RIF Installer . | . . . . . . . . . . . . . . . . . . . . . . . . . . Robots Hacked . | . . . . . . . . . . . . . . . . . . . . . . . . . . Non-combat . | . . . . . . . . . . . . . . . . . . . . . . . . . . Combat . | . . . . . . . . . . . . . . . . . . . . . . . . . . Robot Hacks Applied . | . . . . . . . . . . . . . . . . . . . . . . . . . . Relay Couplers Released . | . . . . . . . . . . . . . . . . . . . . . . . . . . Fabnet Peak Effective % . | . . . . . . . . . . . . . . . . . . . . . . . . . . Robots Rewired 7 | . . . . . . . . . . . . . . . . . . . . . 7 . . . . Allies Hacked . | . . . . . . . . . . . . . . . . . . . . . . . . . . Hacks Repelled . | . . . . . . . . . . . . . . . . . . . . . . . . . . Allies | -11 -10 -9 -8 -8 -7 -7 -7 -7 -6 -6 -6 -6 -6 -5 -5 -5 -5 -5 -4 -4 -4 -4 -4 -4 -3 -------- Run | Yrd Mat Mat Mat Sto Fac Low Low Zio Pro Fac Low Low Dat Pro Fac Upp Upp War Pro Fac Ext Cet Arc Hub Res Total Allies 36 | . . . . 12 2 . . . . . . . . . 1 . . . 2 . 14 5 . . . Largest Group 12 | . . . . 12 1 . . . . . . . . . 1 1 . . 2 . 10 8 8 5 . Highest-Rated Group 722 | . . . . 235 26 . . . . . . . . . 26 26 . . 192 . 513 722 722 480 . Highest-Rated Ally 159 | . . . . 31 26 . . . . . . . . . 26 26 . . 96 . 159 150 150 96 . Total Orders 7 | . . . . . . . . . . 1 . . . . . 2 . . . . 2 . . . 2 STAY 1 | . . . . . . . . . . . . . . . . 1 . . . . . . . . . FOLLOW 1 | . . . . . . . . . . . . . . . . 1 . . . . . . . . . AID 1 | . . . . . . . . . . . . . . . . . . . . . 1 . . . . RETURN 4 | . . . . . . . . . . 1 . . . . . . . . . . 1 . . . 2 Ally Attacks 240 | . . . . 54 . . . . . . . . . . . . . . 20 . 54 46 39 27 . Total Damage 6504 | . . . . 725 . . . . . . . . . . . . . . 565 . 1694 1206 1289 1025 . Kills 29 | . . . . 3 . . . . . . . . . . . . . . 4 . 7 6 4 5 . Allies Corrupted 2 | . . . . . . . . . . . . . . . . . . . 1 . 1 . . . . Allies Melted . | . . . . . . . . . . . . . . . . . . . . . . . . . . Intel | -11 -10 -9 -8 -8 -7 -7 -7 -7 -6 -6 -6 -6 -6 -5 -5 -5 -5 -5 -4 -4 -4 -4 -4 -4 -3 ------- Run | Yrd Mat Mat Mat Sto Fac Low Low Zio Pro Fac Low Low Dat Pro Fac Upp Upp War Pro Fac Ext Cet Arc Hub Res Active Infowar (turns) 19265 | 88 1078 319 1066 370 2121 619 691 1043 499 1410 392 537 61 237 766 685 835 868 581 707 1333 597 864 94 1404 Optics 10651 | . . . . . . . . . . 690 392 537 61 237 766 685 835 868 581 707 1333 597 864 94 1404 Sensors 15550 | . . . 530 370 1788 619 691 1043 499 1408 392 537 61 237 766 685 541 856 581 558 1012 423 864 94 995 Seismic 2021 | 88 1078 319 536 . . . . . . . . . . . . . . . . . . . . . . Jamming 1744 | . . . . . 1165 . . . . 18 . . . . . . . . . 54 . . 19 . 488 Robot Analysis Total 1 | . 1 . . . . . . . . . . . . . . . . . . . . . . . . Derelict Logs Recovered 15 | . . . . . . 2 1 1 1 . 2 1 . 1 . 2 3 . 1 . . . . . . Drone Launches 4 | . . . . . . . . . . 1 . . . . . . . . . . 1 . . . 2 Drone Recoveries 4 | . . . . . . . . . . 1 . . . . . . . . . . 1 . . . 2 Exploration | -11 -10 -9 -8 -8 -7 -7 -7 -7 -6 -6 -6 -6 -6 -5 -5 -5 -5 -5 -4 -4 -4 -4 -4 -4 -3 ------------- Run | Yrd Mat Mat Mat Sto Fac Low Low Zio Pro Fac Low Low Dat Pro Fac Upp Upp War Pro Fac Ext Cet Arc Hub Res Turns Passed 24219 | 172 1078 2036 2235 1694 2464 619 691 1045 756 1461 392 537 61 237 766 685 835 868 581 707 1333 597 864 94 1411 Spaces Moved 17930 | 96 617 1208 909 623 1420 486 547 852 447 1046 547 617 89 297 790 708 871 1088 691 938 1114 222 152 187 1368 Core 65 | 3 . . . . . . . . . 4 . . . . . . . . . . . . . . 58 Treads . | . . . . . . . . . . . . . . . . . . . . . . . . . . Legs 7460 | 93 617 1208 909 623 1420 486 547 852 447 258 . . . . . . . . . . . . . . . Wheels . | . . . . . . . . . . . . . . . . . . . . . . . . . . Hover 10361 | . . . . . . . . . . 784 547 617 89 297 790 708 871 1088 691 938 1114 222 152 187 1266 Flight 44 | . . . . . . . . . . . . . . . . . . . . . . . . . 44 Fastest Speed 28 | 50 120 105 175 115 116 116 116 120 122 56 66 66 66 66 65 65 65 56 65 50 50 38 41 41 28 Average Speed 93 | 117 120 121 175 177 139 116 119 121 125 111 66 66 66 66 65 65 65 64 65 58 50 98 59 41 46 Slowest Speed 750 | 120 120 190 315 190 252 116 120 122 127 750 66 66 66 66 66 65 65 65 65 65 51 102 102 41 200 Overloaded Moves 13 | . . . . . . . . . . . . . . . . . . . . . . 13 . . . Propulsion Burnouts . | . . . . . . . . . . . . . . . . . . . . . . . . . . Robots Hopped . | . . . . . . . . . . . . . . . . . . . . . . . . . . Potential Cave-ins 2 | . . . . . . . . . . . . . . . 2 . . . . . . . . . . Cave-ins Triggered . | . . . . . . . . . . . . . . . . . . . . . . . . . . Exploration Rate (%) 64 | 5 90 94 81 89 34 66 84 84 55 30 77 78 74 60 26 73 66 91 81 21 85 77 86 35 33 Regions Visited 25 Branch Regions 17 Pre-discovered Areas 6 | . . 2 . 1 . . . . . . . . 1 . . 1 1 . . . . . . . . Known Exits Taken 23 | . . 1 1 1 1 1 1 1 1 1 1 1 1 1 1 1 1 1 1 1 1 1 1 1 . Unknown Exits Taken 2 | 1 1 . . . . . . . . . . . . . . . . . . . . . . . . Scrap Searched 24 | . . . . . . 1 3 4 1 . 2 3 . 1 . 4 3 . 2 . . . . . . Spaces Dug 219 | . 12 . 11 8 20 3 . . 12 16 7 7 . 6 18 17 24 . 17 12 2 . . . 27 Terrain Destroyed 717 | . 14 32 22 8 20 3 . . 93 119 7 7 . 6 21 17 96 90 98 13 6 . . . 45 Melee 168 | . . . 10 8 20 3 . . 10 14 7 5 . 6 12 15 8 . 16 10 2 . . . 22 Projectile 74 | . 14 . 1 . . . . . 2 3 . 2 . . 9 2 25 1 3 3 4 . . . 5 AOE 475 | . . 32 11 . . . . . 81 102 . . . . . . 63 89 79 . . . . . 18 Terrain Rammed . | . . . . . . . . . . . . . . . . . . . . . . . . . . Walls Destroyed . | . . . . . . . . . . . . . . . . . . . . . . . . . . Machines Disabled . | . . . . . . . . . . . . . . . . . . . . . . . . . . Actions | -11 -10 -9 -8 -8 -7 -7 -7 -7 -6 -6 -6 -6 -6 -5 -5 -5 -5 -5 -4 -4 -4 -4 -4 -4 -3 --------- Run | Yrd Mat Mat Mat Sto Fac Low Low Zio Pro Fac Low Low Dat Pro Fac Upp Upp War Pro Fac Ext Cet Arc Hub Res Total 23367 | 121 764 1581 1306 1023 1729 526 577 862 584 1221 559 721 90 321 960 897 1070 1242 778 1034 1810 585 912 196 1898 Wait 3568 | . 17 198 194 238 153 31 24 2 82 65 2 82 . 17 106 163 136 98 57 40 551 336 741 6 229 Move 17905 | 95 616 1207 908 622 1419 485 546 851 446 1045 546 616 88 296 789 707 870 1087 690 937 1113 221 151 186 1368 Hop . | . . . . . . . . . . . . . . . . . . . . . . . . . . Pick Up 143 | 3 12 15 11 13 12 . 1 2 5 8 1 3 . . 5 1 3 15 1 4 5 4 3 . 16 Fast Attach 117 | 6 3 7 15 5 11 . . 1 1 13 . 1 1 . 4 4 . 7 . 4 3 1 3 . 27 Attach 71 | 1 3 2 8 4 7 . 1 . 5 7 . . . . 3 . 1 4 . 4 1 2 1 . 17 Detach 15 | . . . 1 . 3 . . . . 5 . . . . 1 . . . . . . 1 1 . 3 Swap 184 | 1 14 26 34 19 7 2 . 2 9 6 . . . . 2 . 4 3 3 6 13 6 . . 27 Drop 173 | . 8 28 18 16 17 . . 3 3 9 1 3 1 . 5 4 2 18 1 3 5 3 4 . 21 Fire 454 | 15 91 98 103 4 1 2 . . 8 13 . 4 . . 10 2 38 10 6 2 11 3 . . 33 Melee 618 | . . . 14 86 99 6 5 1 23 50 9 11 . 8 35 16 13 . 20 34 37 8 8 4 131 Ram . | . . . . . . . . . . . . . . . . . . . . . . . . . . Kick . | . . . . . . . . . . . . . . . . . . . . . . . . . . Crush . | . . . . . . . . . . . . . . . . . . . . . . . . . . Escape Stasis 39 | . . . . . . . . . . . . . . . . . . . . . 13 . . . 26 Rewire 58 | . . . . . . . . . . . . . . . . . . . . . 58 . . . . Trap 5 | . . . . . . . . . 2 . . . . . . . 3 . . . . . . . . Miscellaneous 17 | . . . . 16 . . . . . . . 1 . . . . . . . . . . . . . Route ------- -11/Scrapyard -10/Materials (discovered 4 exits: *Mat x3 / [*Min]) -9/Materials (discovered 4 exits: *Mat x3 / *Min) -8/Materials (discovered 3 exits: *Fac x2 / *Sto) -8/Storage (discovered 2 exits: *Fac / Rec) -7/Factory (discovered 2 exits: *Fac / *Low) -7/Lower Caves -7/Lower Caves -7/Zion -6/Proximity Caves -6/Factory (discovered 3 exits: *Fac / *Low x2) -6/Lower Caves -6/Lower Caves -6/Data Miner -5/Proximity Caves -5/Factory (discovered 4 exits: *Fac x2 / *Upp x2) -5/Upper Caves -5/Upper Caves -5/Warlord -4/Proximity Caves -4/Factory (discovered 4 exits: *Upp / *Ext x2 / Arm) -4/Extension (discovered 2 exits: *Res / *Cet) -4/Cetus -4/Archives (discovered 3 exits: *Res / *Hub x2) -4/Hub_04(d) -3/Research History --------- Turn | Location | Event 3 | -11/Scrapyard | Discovered new exit (range 16) 173 | -11/Scrapyard | Entered Materials 281 | -10/Materials | Discovered new exit (range 16) 303 | -10/Materials | Build established: Mutant 474 | -10/Materials | Discovered new exit (range 7) 581 | -10/Materials | Discovered new exit (range 10) 773 | -10/Materials | Derelicts attacked the area 978 | -10/Materials | Core integrity fell below 50% 1064 | -10/Materials | Core integrity fell below 20% 1233 | -10/Materials | Discovered new exit (range 8) 1251 | -10/Materials | Entered another Materials area 1251 | -9/Materials | Evolved 2 slots: Propulsion x1, Weapon x1 1726 | -9/Materials | Destroyed 7 combat bots 1806 | -9/Materials | Discovered new exit (range 5) 1891 | -9/Materials | Build established: Scavenger-Tank 1993 | -9/Materials | Identified exit to Mines 2318 | -9/Materials | Core integrity fell below 50% 2422 | -9/Materials | Discovered new exit (range 11) 2463 | -9/Materials | Repaired Hvy. Assault Rifle+ 2494 | -9/Materials | Learned Storage emergency access door positions 2497 | -9/Materials | Repaired Hvy. Assault Rifle+ 2518 | -9/Materials | Learned location of Recycling (-8) 2532 | -9/Materials | Learned 2 Storage zone layouts 2534 | -9/Materials | Identified exit to Materials 2534 | -9/Materials | Learned location of 1 exit from Materials 2548 | -9/Materials | Loaded intel: 9 trap records 3287 | -9/Materials | Entered another Materials area 3287 | -8/Materials | Evolved 2 slots: Utility x2 3288 | -8/Materials | Identified exit to Factory 3288 | -8/Materials | Discovered new exit (range 8) 4476 | -8/Materials | Repaired Hvy. Assault Rifle+ 4510 | -8/Materials | Repaired Hvy. Assault Rifle+ 4932 | -8/Materials | Discovered exit to Factory (range 4) 5521 | -8/Materials | Identified exit to Storage 5522 | -8/Materials | Entered Storage 5523 | -8/Storage | Identified exit to Recycling 6032 | -8/Storage | Build established: Mutant 6119 | -8/Storage | Met a pair of Derelict thieves 6174 | -8/Storage | Assisted by bots powering up and referring to "LRC-V3" 6324 | -8/Storage | Lost 8 allies 7088 | -8/Storage | Discovered exit to Factory (range 6) 7102 | -8/Storage | Learned location of 1 exit from Storage 7175 | -8/Storage | Learned Factory trap positions 7176 | -8/Storage | Learned location of 1 exit from Storage 7216 | -8/Storage | Entered Factory 7216 | -7/Factory | Evolved 2 slots: Propulsion x1, Utility x1 7217 | -7/Factory | Loaded intel: 113 trap records 7756 | -7/Factory | Discovered new exit (range 6) 7760 | -7/Factory | Identified exit to Factory 8594 | -7/Factory | Found Prototype Launcher 8594 | -7/Factory | Identified Rocket Array 8599 | -7/Factory | Found Rocket Array 8950 | -7/Factory | Fabricated Imp. Melee Analysis Suite? 8991 | -7/Factory | P-60 Hacker assimilated allied Administrator 4a 9362 | -7/Factory | Build established: Gladiator 9572 | -7/Factory | Discovered new exit (range 4) 9575 | -7/Factory | Identified exit to Lower Caves 9680 | -7/Factory | Entered Lower Caves 9684 | -7/Lower Caves | Identified exit to Lower Caves 9832 | -7/Lower Caves | Learned Factory terminal intel 10299 | -7/Lower Caves | Entered another Lower Caves area 10469 | -7/Lower Caves | Attracted the attention of an 0b10 checkpoint 10499 | -7/Lower Caves | Learned 4 Factory zone layouts 10695 | -7/Lower Caves | Discovered new exit (range 15) 10712 | -7/Lower Caves | Identified exit to Zion 10809 | -7/Lower Caves | Encountered a Warlord checkpoint 10990 | -7/Lower Caves | Entered Zion 11031 | -7/Zion | System corruption cleaned by Quarantine Array 11321 | -7/Zion | Given the Hacking Drone Bay 11338 | -7/Zion | Found Prototype Device 11358 | -7/Zion | Identified Hacking Drone Bay 11425 | -7/Zion | Given A8's code to call for help 11653 | -7/Zion | Learned Factory terminal intel 11861 | -7/Zion | Met Imprinter 12025 | -7/Zion | Discovered new exit (range 8) 12034 | -7/Zion | Identified exit to Proximity Caves 12035 | -7/Zion | Entered Proximity Caves 12247 | -6/Proximity Caves | Learned Factory security intel 12324 | -6/Proximity Caves | Spotted B-75 Beast 12430 | -6/Proximity Caves | Destroyed B-75 Beast 12451 | -6/Proximity Caves | Lost 5 parts (1p2n2u) 12483 | -6/Proximity Caves | Attracted the attention of an 0b10 checkpoint 12762 | -6/Proximity Caves | Discovered exit to Factory (range 7) 12791 | -6/Proximity Caves | Entered Factory 12791 | -6/Factory | Evolved 2 slots: Utility x2 12794 | -6/Factory | Loaded intel: 26 terminal locations 12913 | -6/Factory | Lost 3 parts (1p2n) 13397 | -6/Factory | Lost 5 parts (3n1u1w) 13619 | -6/Factory | Identified exit to Lower Caves 13820 | -6/Factory | Discovered new exit (range 21) 13843 | -6/Factory | Central database locked down 14029 | -6/Factory | Central database locked down 14034 | -6/Factory | Cargo convoy interrupted 14092 | -6/Factory | Central database locked down 14252 | -6/Factory | Entered Lower Caves 14489 | -6/Lower Caves | Build established: Scout 14511 | -6/Lower Caves | Learned 12 Factory zone layouts 14536 | -6/Lower Caves | Learned Factory emergency access door positions 14601 | -6/Lower Caves | Discovered new exit (range 10) 14607 | -6/Lower Caves | Identified exit to Lower Caves 14644 | -6/Lower Caves | Entered another Lower Caves area 14668 | -6/Lower Caves | Learned Factory stockpile data 14787 | -6/Lower Caves | Activated DRS Beacon 14860 | -6/Lower Caves | Attracted the attention of an 0b10 checkpoint 15178 | -6/Lower Caves | Discovered new exit (range 6) 15180 | -6/Lower Caves | Identified exit to Data Miner 15181 | -6/Lower Caves | Entered Data Miner 15182 | -6/Data Miner | Discovered new exit (range 6) 15191 | -6/Data Miner | Met Data Miner 15208 | -6/Data Miner | Learned location of Section 7 (-2) 15208 | -6/Data Miner | Acquired the access code to Warlord's prototype stash 15216 | -6/Data Miner | Received God Mode back door access code from Data Miner 15240 | -6/Data Miner | Identified exit to Proximity Caves 15242 | -6/Data Miner | Entered Proximity Caves 15415 | -5/Proximity Caves | Learned Factory stockpile data 15452 | -5/Proximity Caves | Discovered new exit (range 15) 15464 | -5/Proximity Caves | Spotter reported a threat 15478 | -5/Proximity Caves | Identified exit to Factory 15479 | -5/Proximity Caves | Entered Factory 15479 | -5/Factory | Evolved 2 slots: Propulsion x1, Utility x1 15480 | -5/Factory | Identified exit to Factory 15483 | -5/Factory | Loaded intel: 26 terminal locations 15709 | -5/Factory | Discovered exit to Factory (range 6) 15709 | -5/Factory | Discovered new exit (range 21) 15756 | -5/Factory | Repaired Power Maul 16060 | -5/Factory | Found Prototype Launcher 16060 | -5/Factory | Identified Tesla Bomb Launcher 16132 | -5/Factory | Identified exit to Upper Caves 16245 | -5/Factory | Entered Upper Caves 16245 | -5/Upper Caves | Accompanied by 1 ally 16308 | -5/Upper Caves | Learned Factory trap positions 16765 | -5/Upper Caves | Found Alien Artifact 16765 | -5/Upper Caves | Identified Dimensional Node Initializer 16765 | -5/Upper Caves | Initialized slip node 16878 | -5/Upper Caves | Discovered new exit (range 16) 16887 | -5/Upper Caves | Identified exit to Upper Caves 16909 | -5/Upper Caves | Learned location of Warlord (-5) 16930 | -5/Upper Caves | Entered another Upper Caves area 16939 | -5/Upper Caves | Learned 8 Factory zone layouts 16946 | -5/Upper Caves | Entered a destroyed Warlord outpost 17003 | -5/Upper Caves | Learned 12 Factory zone layouts 17597 | -5/Upper Caves | Attracted the attention of an 0b10 outpost 17760 | -5/Upper Caves | Discovered new exit (range 8) 17764 | -5/Upper Caves | Identified exit to Warlord 17765 | -5/Upper Caves | Entered Warlord 17787 | -5/Warlord | System corruption cleaned by Quarantine Array 17918 | -5/Warlord | Found Prototype Special Weapon 17918 | -5/Warlord | Identified RU-N14's Throwing Claymores v3 17920 | -5/Warlord | Found RU-N14's Throwing Claymores v3 17921 | -5/Warlord | Found RU-N14's Throwing Claymores v3 17923 | -5/Warlord | Found RU-N14's Throwing Claymores v3 17925 | -5/Warlord | Found RU-N14's Throwing Claymores v3 17926 | -5/Warlord | Found RU-N14's Throwing Claymores v3 18097 | -5/Warlord | Visited the Vortex Lab 18104 | -5/Warlord | Found Prototype Piercing Weapon 18105 | -5/Warlord | Identified Vortex Lance 18110 | -5/Warlord | Met EX-DEC 18116 | -5/Warlord | Warlord's base attacked by MAIN.C 18244 | -5/Warlord | Opened Warlord's prototype stash 18257 | -5/Warlord | Found Prototype Device 18257 | -5/Warlord | Identified Exp. Phase Shifter 18262 | -5/Warlord | Found Prototype Processor 18262 | -5/Warlord | Identified Exp. Core Analyzer 18265 | -5/Warlord | Found Prototype Device 18265 | -5/Warlord | Identified Thermal Barrier 18381 | -5/Warlord | Met Warlord 18466 | -5/Warlord | Warlord forces counterattacked 18490 | -5/Warlord | Lost 3 allies 18514 | -5/Warlord | Spotted Executioner 18623 | -5/Warlord | Spotted Striker 18623 | -5/Warlord | Spotted Striker 18623 | -5/Warlord | Spotted Executioner 18626 | -5/Warlord | Discovered new exit (range 12) 18632 | -5/Warlord | Identified exit to Proximity Caves 18633 | -5/Warlord | Entered Proximity Caves 18740 | -4/Proximity Caves | Spotter reported a threat 18855 | -4/Proximity Caves | Spotter reported a threat 18910 | -4/Proximity Caves | Spotter reported a threat 18963 | -4/Proximity Caves | Spotter reported a threat 19043 | -4/Proximity Caves | Acquired the password to a Derelict Tinkerer's latest research 19047 | -4/Proximity Caves | Enhanced Grunt warped into view, answering call for help 19050 | -4/Proximity Caves | Enhanced Grunt warped into view, answering call for help 19053 | -4/Proximity Caves | Spotter reported a threat 19146 | -4/Proximity Caves | Attracted the attention of an 0b10 checkpoint 19158 | -4/Proximity Caves | Spotter reported a threat 19206 | -4/Proximity Caves | Discovered exit to Factory (range 12) 19211 | -4/Proximity Caves | Spotter reported a threat 19214 | -4/Proximity Caves | Entered Factory 19214 | -4/Factory | Evolved 2 slots: Propulsion x1, Utility x1 19215 | -4/Factory | Identified exit to Extension 19215 | -4/Factory | Identified exit to Armory 19216 | -4/Factory | Identified exit to Upper Caves 19217 | -4/Factory | Loaded intel: 96 trap records 19386 | -4/Factory | Fabricated Hyp. Railgun? 19464 | -4/Factory | Search patrols dispatched 19506 | -4/Factory | Incoming investigation squad redirected 19639 | -4/Factory | Fabricated Lgt. Regenerative Plating? 19714 | -4/Factory | Search patrols dispatched 19921 | -4/Factory | Entered Extension 20505 | -4/Extension | Rescued A7 20515 | -4/Extension | Rescued a captive Derelict 20646 | -4/Extension | Rescued a captive Derelict 20814 | -4/Extension | Spotted B-86 Titan 20826 | -4/Extension | Spotted B-86 Titan 20852 | -4/Extension | Allies destroyed B-86 Titan 20860 | -4/Extension | Allies destroyed B-86 Titan 20892 | -4/Extension | Rescued a captive Derelict 20893 | -4/Extension | Rescued a captive Derelict 20904 | -4/Extension | Lost 4 allies 20997 | -4/Extension | Lost 5 allies 21041 | -4/Extension | Rescued a captive Derelict 21044 | -4/Extension | Rescued a captive Derelict 21167 | -4/Extension | Discovered new exit (range 10) 21167 | -4/Extension | Discovered new exit (range 6) 21253 | -4/Extension | Identified exit to Cetus 21254 | -4/Extension | Entered Cetus 21254 | -4/Cetus | Accompanied by 4 allies (A7) 21259 | -4/Cetus | Acquired a Cetus Manufacturing Module code from A7 21272 | -4/Cetus | Spotted Cetus Guard 21273 | -4/Cetus | Spotted Cetus Guard 21273 | -4/Cetus | Spotted Cetus Guard 21273 | -4/Cetus | Spotted Cetus Guard 21283 | -4/Cetus | Allies destroyed Cetus Guard 21292 | -4/Cetus | Allies destroyed Cetus Guard 21303 | -4/Cetus | Allies destroyed Cetus Guard 21308 | -4/Cetus | Destroyed Cetus Guard 21344 | -4/Cetus | Started Cetus Manufacturing Module 21369 | -4/Cetus | Manufactured an Enhanced Grunt 21394 | -4/Cetus | Manufactured an Enhanced Grunt 21409 | -4/Cetus | Escorted A7 to Cetus Mainframe 21419 | -4/Cetus | Manufactured an Enhanced Grunt 21444 | -4/Cetus | Manufactured an Enhanced Grunt 21469 | -4/Cetus | Manufactured an Enhanced Grunt 21702 | -4/Cetus | Build established: Commander-Gladiator 21788 | -4/Cetus | Discovered new exit (range 22) 21808 | -4/Cetus | Identified exit to Archives 21851 | -4/Cetus | Entered Archives 21851 | -4/Archives | Accompanied by 8 allies (A7) 21856 | -4/Archives | Received a hacking code to weaken MAIN.C 21904 | -4/Archives | Discovered new exit (range 22) 21917 | -4/Archives | Discovered new exit (range 22) 21946 | -4/Archives | Discovered new exit (range 22) 22153 | -4/Archives | Identified exit to Hub_04(d) 22382 | -4/Archives | Build established: Commander-Ninja 22715 | -4/Archives | Entered Hub_04(d) 22715 | -4/Hub_04(d) | Accompanied by 5 allies 22772 | -4/Hub_04(d) | Network Hub disabled 22791 | -4/Hub_04(d) | Incoming investigation squad redirected 22800 | -4/Hub_04(d) | Discovered new exit (range 19) 22808 | -4/Hub_04(d) | Identified exit to Research 22809 | -4/Hub_04(d) | Entered Research 22809 | -3/Research | Evolved 2 slots: Power x1, Utility x1 23494 | -3/Research | Spotted B-86 Titan 23569 | -3/Research | Lost 9 parts (1p4n3u1w) 23691 | -3/Research | Build established: Scout 24026 | -3/Research | Lost 7 parts (1p4n1u1w) 24052 | -3/Research | System corruption reached 10% 24086 | -3/Research | Core integrity fell below 50% 24141 | -3/Research | Lost 17 parts (4p3n7u3w) 24177 | -3/Research | Spotted Striker 24178 | -3/Research | Cargo convoy interrupted 24188 | -3/Research | Core integrity fell below 20% 24189 | -3/Research | Spotted B-86 Titan 24197 | -3/Research | Incoming assault squad redirected 24220 | -3/Research | Destroyed by Y-72 Warden with Railgun Last Messages --------------- 24191_ Xenon Bombardment Thruster destroyed. 24191_ Hvy. Machine Gun destroyed. 24191_ Xenon Bombardment Thruster destroyed. 24192_ System corrupted: Energy discharge (-5). 24192_ Acquired 6 matter. 24194_ Penetrated by Slug. 24197_ ALERT: Higher priority target reported, redirecting assault. 24201_ U-05 Engineer builds a Wall. 24207_ ALERT: Hostiles spotted, dispatching reinforcements to Terminal R005. 24208_ C|WOAFN,RJOMMRQ:|=U1Y & 24211_ Penetrated by Slug. 24211_ TF Node disabled. 24211_ Adv. Signal Interpreter tumbles out of TF Node. 24213_ Triggered Segregator Trap. 24213_ Arcs of energy rise from the floor. 24213_ Graphene Brace blown off. 24213_ Imp. Melee Analysis Suite blown off. 24213_ Enh. Optical Array blown off. 24213_ Adv. Signal Interpreter blown off. Map ----- +----------------------------------------------------+ | "" """ +??????????????# #??? | | ""F""" #??????????????# #??? | | """"" #??????????????## ##??? | | #???????????????# #???? | | #???????????????# #???? | | #???????????????# #???? | | ######## #???????????????# #???? | | ???????? #???????????????# #???? | | ???????? #???????????????# #???? | | ???????? #???????????????# #???? | | ???????? #???????????????# #???? | | ????????+#???????????????# #???? | | ?????????????????????????#!#???? | | ?????????????????????????# #???? | | ?????????????????????????# #???? | | ?????????????????######??# #???? | | ?????????????????# ## ##??? | | ?????????????????# # #??? | | ?????????????????# + Y #??? | | ?????????????????# ! # ! #??? | | ?????????????????# ## ##??? | | ?????????????????# ??# #???? | | ?????????????????######### ##??? | | ?????????????????# # #??? | | ?????????????????# + " #??? | | ?????????????????# #@ #??? | | ?????????????????# ] ## ##??? | | ?????????????????# ??# #???? | | ?????????????????# ??# #???? | | ?????????????????#####???# #???? | | ?????????????????????????# #???? | | ?????????????????????????? #???? | | ?????????????????????????? ???? | | ?????????????????????????? ???? | | ?????????????????????????? ???? | | ?????????????????????????? ???? | | ???????????????????????????????? | | ???????????????????????????????? | | ???????????????????????????????? | | ???????????????????????????????? | | ???????????????????????????????? | | ???????????????????????????????? | | ???????????????????????????????? | | ???????????????????????????????? | | ???????????????????????????????? | | ???????????????????????????????? | | ???????????????????????????????? | | ???????????????????????????????? | | ???????????????????????????????? | | ???????????????????????????????? | +----------------------------------------------------+ Best States ------------- Heat Dissipation 65 Energy Generation 37 Energy Capacity 500 Matter Stores 300 Matter Capacity 300 Sight Range 22 Robot Scan Range 16 Terrain Scan Density 10 Jamming Range 14 Armor Coverage 600 Resistance: KI 20 Resistance: TH 10 Propulsion Shielding 66 Utility Shielding 90 Weapon Shielding 66 Melee Speed Boost 30 Evasion (%) 65 Melee Accuracy 16 Core Analysis 8 Force Boost 30 Offensive Hacking 10 Authchip Count 1 Item Schematics ----------------- Imp. Assault Rifle | -9/Materials | Scanalyzed Hacking Suite | -9/Materials | Scanalyzed Hpw. Tractor Beam | -8/Storage | Hacked Titanium Leg | -8/Storage | Hacked Imp. Heat Sink | -8/Storage | Hacked Imp. Melee Analysis Suite | -7/Factory | Hacked Microactuators | -7/Factory | Hacked Imp. Particle Charger | -7/Zion | Archive Arm. Huge Wheel | -7/Zion | Archive Fusion Compressor | -7/Zion | Archive Hvy. Rocket Launcher | -7/Zion | Archive Adv. Melee Analysis Suite | -7/Zion | Archive Transmission Jammer | -7/Zion | Archive Gauss Cannon | -7/Zion | Archive Plasma Rifle | -7/Zion | Archive Launcher Guidance Computer | -7/Zion | Archive Imp. Corruption Screen | -7/Zion | Archive Hvy. Phase Cannon | -7/Zion | Archive Hvy. Ion Cannon | -7/Zion | Archive Arc Projector | -7/Zion | Archive Imp. System Restoration Module | -7/Zion | Archive Enh. Nuclear Core | -6/Factory | Scanalyzed Thunder Leg | -6/Factory | Hacked Combat Drone Bay | -6/Data Miner | Free Lgt. Regenerative Plating | -6/Data Miner | Free Enh. Flexi-carbon Leg | -6/Data Miner | Free Adv. EM Disruption Field | -6/Data Miner | Free Enh. Force Rifle | -6/Data Miner | Free Imp. Heavy Treads | -6/Data Miner | Free Imp. Remote Force Field | -6/Data Miner | Free Adv. Datajack | -6/Data Miner | Free Impulse Thruster | -6/Data Miner | Free Plasma Cutter | -5/Factory | Scanalyzed Robot Schematics ------------------ C-57 Dissector | -7/Zion | Archive K-01 Serf | -7/Zion | Archive B-48 Gladiator | -7/Zion | Archive G-47 Trooper | -7/Zion | Archive A-15 Conveyor | -6/Data Miner | Free S-27 Virus | -6/Data Miner | Free X-67 Chaingunner | -6/Data Miner | Free R-10 Processor | -6/Data Miner | Free Fabricated ------------ Imp. Melee Analysis Suite | x2 | -7/Factory Hyp. Railgun | x2 | -4/Factory | Preloaded Lgt. Regenerative Plating | x1 | -4/Factory Repaired ---------- Hvy. Assault Rifle | 22% | -9/Materials Hvy. Assault Rifle | 29% | -9/Materials Hvy. Assault Rifle | 16% | -8/Materials Hvy. Assault Rifle | 32% | -8/Materials Power Maul | 70% | -5/Factory Studied --------- Aluminum Leg | -9/Materials | Hacked Hvy. Assault Rifle | -9/Materials | Hacked Rocket Launcher | -9/Materials | Hacked Katana | -8/Materials | Hacked Hvy. Mace | -8/Materials | Hacked Gravmag Array | -6/Factory | Hacked Imp. Linear Gravjet | -3/Research | Hacked Mic. Antimatter Reactor | -3/Research | Hacked Alien Tech Used ----------------- Dimensional Node Initializer Achievements -------------- Hammer Time Challenges ------------ None Game ------ Seed MicroWeaponsDatajack Manual? 0 Play Time 04:01:18 Cumulative 435.2 hours Start 2025.11.19 @ 19:00:57 End 2025.11.20 @ 22:47:54 Sessions 5 Manual Loads 0 Difficulty Rogue Special Mode None Game No. 162 Rogue 141 Adventurer 21 Explorer 0 Win Type - Total 22 Types 13/1/5/1/0/0/0/1/0/1 Lore% 61 Gallery% 73 Achievement% 57 Wizard Run 0 Options --------- Layout 1 ASCII 0 Keyboard 0 Movement Mouse Keybinds 0 Fullscreen 2 Font 32/SmallcapsGlow Map View 77x35 Zoom Use 0% Tactical HUD 1 Map Filters NONE Filters NONE Steam 1 RUN: b9c0ef1f-dfa5-448f-ac00-a403e8099772